Cogmind - Beta 11.1 @@@ ROGUE MODE // 2022.06.06 @ 15:26:14 Player: ILikeGoodFood Result: Destroyed by G-34 Mercenary with Small Laser Performance ------------- Evolutions (1) 500 Regions Visited (3) 600 Robots Destroyed (23) 115 Value Destroyed (499) 499 Prototype IDs (2) 40 Alien Tech Used (0) 0 Bonus (7) 7 TOTAL SCORE: 1761 Bonus ------- Follower Combat Kills 7 Cogmind --------- Core Integrity 0/400 Matter 264/300 Energy 207/210 System Corruption 0% Temperature Warning (303) Movement Core (300) Ox5 Location -9/Materials Parts ------- > --- POWER (2) -------- Light Nuclear Core Light Angular Momentum Engine > --- PROPULSION (3) --- (None) > --- UTILITY (2) ------ Visual Processing Unit > --- WEAPON (2) ------- EM Pulse Gun > --- INVENTORY (5) ---- (None) Peak State ------------ > --- POWER ------------ Light Nuclear Core Light Angular Momentum Engine > --- PROPULSION ------- Aluminum Leg VTOL Module VTOL Module > --- UTILITY ---------- Improved Heat Sink Visual Processing Unit > --- WEAPON ----------- Small Laser Beam Rifle > --- INVENTORY -------- Improved Ion Engine Aluminum Leg EM Pulse Gun Grenade Launcher Mining Laser [Rating: 21] Favorites ----------- Power Light Nuclear Core Engine Improved Ion Engine Power Core Light Nuclear Core Propulsion Flight Unit Treads Light Treads Leg Aluminum Leg Flight Unit Flight Unit Utility Improved Heat Sink Device Improved Heat Sink Processor Visual Processing Unit Weapon Light Assault Rifle Energy Gun Beam Rifle Ballistic Gun Light Assault Rifle Special Weapon Mining Laser Build | -11 -10 -10 -9 ------- Run | Scr Mat Min Mat Slots Evolved 2 | . . . 2 Power 1 | . . . 1 Propulsion 1 | . . . 1 Utility . | . . . . Weapon . | . . . . Parts Attached 34 | 5 4 5 20 Power 8 | 1 . 1 6 Engine 6 | 1 . . 5 Core 2 | . . 1 1 Reactor . | . . . . Propulsion 15 | 2 2 3 8 Treads 5 | 2 . . 3 Leg 4 | . . 1 3 Wheel . | . . . . Hover . | . . . . Flight 6 | . 2 2 2 Utility 2 | . . 1 1 Device 1 | . . 1 . Storage . | . . . . Processor 1 | . . . 1 Hackware . | . . . . Protection . | . . . . Artifact . | . . . . Weapon 9 | 2 2 . 5 Energy Gun 4 | 1 . . 3 Energy Cannon . | . . . . Ballistic Gun 4 | 1 2 . 1 Ballistic Cannon . | . . . . Launcher . | . . . . Special Weapon 1 | . . . 1 Impact Weapon . | . . . . Slashing Weapon . | . . . . Piercing Weapon . | . . . . Special Melee Weapon . | . . . . Unidentified Prototypes . | . . . . Parts Lost 14 | . . 2 12 Power 2 | . . . 2 Propulsion 6 | . . 2 4 Utility 1 | . . . 1 Weapon 5 | . . . 5 Highest Loss Streak 7 | . . 2 7 To Critical Strikes . | . . . . Average Slot Usage (%) 70 | . 71 60 73 Engine 9 | . 14 6 9 Core 5 | . . 7 7 Treads 6 | . 16 . 4 Leg 4 | . . 6 5 Flight 10 | . 11 11 10 Device 6 | . . . 10 Processor 2 | . . . 4 Energy Gun 7 | . 7 . 10 Ballistic Gun 16 | . 21 28 10 Naked Turns . | . . . . Heaviest Build 21 | 8 8 8 21 Greatest Support 40 | 40 40 10 40 Greatest Overweight (x) 3 | . . 2 3 Average Overweight (x) . | . . . . Largest Inventory Capacity 5 | 5 5 5 5 Average Capacity 5 | 5 5 5 5 Most Carried 5 | 2 4 5 5 Average Carried 3 | . 2 4 4 Final Capacity 5 | 5 5 5 5 Final Carried 5 | 1 4 5 . Class Distribution -------------------- 52% | Scavenger-Mutant 47% | Mutant Dominant Class ---------------- Mutant | -10/Materials Mutant | -10/Mines Scavenger-Mutant | -9/Materials Resources | -11 -10 -10 -9 ----------- Run | Scr Mat Min Mat Matter Collected 581 | 243 72 72 194 Remotely . | . . . . Salvage Created 663 | . 121 126 416 Parts 48 | . 11 7 30 Haulers Intercepted . | . . . . Recyclers Shooed . | . . . . Parts Field Recycled . | . . . . Retrieved Matter . | . . . . Parts Self-Destructed . | . . . . Prevented . | . . . . Kills | -11 -10 -10 -9 ------- Run | Scr Mat Min Mat Combat Hostiles Destroyed 20 | . 6 4 10 Guns 20 | . 6 4 10 Classes Destroyed 4 | . 2 1 1 Watcher 3 | . 1 . 2 Swarmer 11 | . 6 2 3 Grunt 7 | . . 2 5 Sentry 2 | . . . 2 Best Kill Streak 6 | . 6 2 3 Combat Bots Only 5 | . 5 2 3 Max Kills in Single Turn 2 | . 1 1 2 Gunslinging 1 | . . . 1 Exploded . | . . . . Melee . | . . . . Uniques/NPCs Destroyed . | . . . . Combat | -11 -10 -10 -9 -------- Run | Scr Mat Min Mat Damage Taken 1742 | . 207 274 1261 Core 559 | . 66 88 405 Absorbed by Shields . | . . . . Core Remaining (%) 69 | 100 . 38 . Volleys Fired 92 | . 20 15 57 Largest 2 | . 2 2 2 Hottest 96 | . 60 40 96 Shots Fired 172 | . 40 30 102 Gun 172 | . 40 30 102 Cannon . | . . . . Launcher . | . . . . Special . | . . . . Kinetic 106 | . 27 30 49 Thermal 49 | . . . 49 Explosive . | . . . . Electromagnetic 17 | . 13 . 4 Robot Hit Streak 10 | . 4 7 10 Robot Miss Streak 6 | . 3 6 5 Penetration Max . | . . . . Secondary Targets 4 | . 1 1 2 Max Gunslinging Chain 1 | . 1 1 1 Shots Hit Robots 102 | . 19 17 66 Core Hits 42 | . 10 10 22 Critical Kills . | . . . . Critical Parts Destroyed . | . . . . Critical Strikes 3 | . . . 3 Burn 3 | . . . 3 Melee Attacks . | . . . . Impact . | . . . . Slashing . | . . . . Piercing . | . . . . Sneak Attacks . | . . . . Combat Hostiles . | . . . . Follow-up Attacks . | . . . . Damage Inflicted 1151 | . 200 146 805 Guns 1151 | . 200 146 805 Cannons . | . . . . Explosions . | . . . . Melee . | . . . . Ramming . | . . . . Kinetic 615 | . 101 146 368 Thermal 397 | . . . 397 Explosive . | . . . . Electromagnetic 139 | . 99 . 40 Impact . | . . . . Slashing . | . . . . Piercing . | . . . . Highest Corruption 1 | . 1 1 . Average Corruption 1 | . 1 1 . Corruption Purged . | . . . . Corruption Blocked . | . . . . Effects 3 | . 1 2 . Heat Flow Errors 1 | . 1 . . Energy Discharges 2 | . . 2 . Overload Shots . | . . . . Overflow Damage . | . . . . Projectiles . | . . . . Explosions . | . . . . Melee . | . . . . Knockbacks . | . . . . Impact . | . . . . Kinetic . | . . . . Secondary . | . . . . Self-Inflicted Damage . | . . . . Shots . | . . . . Rammed . | . . . . Targets Rammed . | . . . . Kicked . | . . . . Crushed . | . . . . Highest Temperature 297 | . 142 85 297 Average Temperature 65 | . 36 37 101 Received Heat Transfer 615 | . . 153 462 Effects 1 | . . . 1 Energy Bleed 1 | . . . 1 Siege Activations . | . . . . Robots Corrupted . | . . . . Combat Hostiles . | . . . . Parts Fried . | . . . . Impact Corruptions . | . . . . Robots Melted . | . . . . Combat Hostiles . | . . . . Parts Melted 2 | . . . 2 Heat Transferred 1222 | . . . 1222 Parts Sabotaged . | . . . . Parts Stolen . | . . . . Parts Stripped . | . . . . Power Chain Reactions . | . . . . Missiles Intercepted . | . . . . Alert | -11 -10 -10 -9 ------- Run | Scr Mat Min Mat Peak Influence 219 | . 219 169 174 Initial 85 | . . 85 65 Average 98 | . 120 107 98 Maximum Alert Level 1 | . 1 . . Low Security (%) 94 | 100 74 100 100 Level 1 5 | . 25 . . Level 2 . | . . . . Level 3 . | . . . . Level 4 . | . . . . Level 5 . | . . . . High Security . | . . . . Max Security . | . . . . Squads Dispatched 2 | . . . 2 Investigation . | . . . . Extermination . | . . . . Reinforcement 2 | . . . 2 Assault . | . . . . Garrison . | . . . . Intercept . | . . . . Searches Triggered . | . . . . Construction Impeded . | . . . . Haulers Reinforced . | . . . . Active Scanning Responses . | . . . . Cargo Convoy Interrupts . | . . . . Stealth | -11 -10 -10 -9 --------- Run | Scr Mat Min Mat Distress Signals 3 | . 2 . 1 Communications Jammed . | . . . . Distress Signals . | . . . . Times Spotted 38 | . 10 5 23 Peak Tracking Total 6 | . 4 3 6 Tactical Retreats 3 | . 2 . 1 Traps | -11 -10 -10 -9 ------- Run | Scr Mat Min Mat Traps Triggered 1 | . 1 . . Indirectly . | . . . . Trap Hack Attempts . | . . . . Triggered . | . . . . Disarmed . | . . . . Reprogrammed . | . . . . Reused . | . . . . Traps Extracted . | . . . . Installed . | . . . . Triggered . | . . . . Machines | -11 -10 -10 -9 ---------- Run | Scr Mat Min Mat Machines Disabled . | . . . . Max in Single Turn . | . . . . Machines Sabotaged . | . . . . Garrisons Compromised . | . . . . Overloaded Fab Kills . | . . . . Hacking | -11 -10 -10 -9 --------- Run | Scr Mat Min Mat Machines Accessed 4 | . 4 . . Terminals 3 | . 3 . . Fabricators . | . . . . Repair Stations . | . . . . Recycling Units 1 | . 1 . . Scanalyzers . | . . . . Garrison Access . | . . . . Total Hacks 8 | . 8 . . Successful 6 | . 6 . . Failed 2 | . 2 . . Catastrophic . | . . . . Database Lockouts . | . . . . Manual 1 | . 1 . . Terminals 7 | . 7 . . Fabricators . | . . . . Repair Stations . | . . . . Recycling Units 1 | . 1 . . Scanalyzers . | . . . . Garrison Access . | . . . . Terminal Hacks 6 | . 6 . . Record 3 | . 3 . . Prototype ID Bank 1 | . 1 . . Alert Level 1 | . 1 . . Zone Layout 1 | . 1 . . Fabricator Hacks . | . . . . Repair Station Hacks . | . . . . Recycling Unit Hacks . | . . . . Scanalyzer . | . . . . Garrison Access Hacks . | . . . . Unauthorized Hacks . | . . . . Terminals . | . . . . Fabricators . | . . . . Repair Stations . | . . . . Recycling Units . | . . . . Scanalyzers . | . . . . Garrison Access . | . . . . Data Cores Recovered . | . . . . Used . | . . . . Hacking Detections 3 | . 3 . . Full Trace Events . | . . . . Feedback Events . | . . . . Feedback Blocked . | . . . . Robot Schematics Acquired . | . . . . Robots Built . | . . . . Authchips . | . . . . Time . | . . . . Total Robot Build Rating . | . . . . Part Schematics Acquired . | . . . . Parts Built . | . . . . Authchips . | . . . . Time . | . . . . Total Part Build Rating . | . . . . Parts Repaired . | . . . . Time . | . . . . Parts Recycled . | . . . . Recycled Matter . | . . . . Retrieved Matter . | . . . . Retrieved Components . | . . . . Parts Scanalyzed . | . . . . Part Schematics Acquired . | . . . . Parts Damaged . | . . . . Bothacking | -11 -10 -10 -9 ------------ Run | Scr Mat Min Mat Used RIF Installer . | . . . . Robots Hacked . | . . . . Non-combat . | . . . . Combat . | . . . . Robot Hacks Applied . | . . . . Relay Couplers Released . | . . . . Fabnet Peak Effective % . | . . . . Robots Rewired . | . . . . Allies Hacked . | . . . . Hacks Repelled . | . . . . Allies | -11 -10 -10 -9 -------- Run | Scr Mat Min Mat Total Allies 2 | . . 2 . Largest Group 2 | . . 2 . Highest-Rated Group 42 | . . 42 . Highest-Rated Ally 31 | . . 31 . Total Orders . | . . . . Ally Attacks 3 | . . 3 . Total Damage 42 | . . 42 . Kills 1 | . . 1 . Allies Corrupted . | . . . . Allies Melted . | . . . . Intel | -11 -10 -10 -9 ------- Run | Scr Mat Min Mat Robot Analysis Total . | . . . . Derelict Logs Recovered . | . . . . Drone Launches . | . . . . Drone Recoveries . | . . . . Exploration | -11 -10 -10 -9 ------------- Run | Scr Mat Min Mat Turns Passed 1053 | 63 221 187 582 Spaces Moved 770 | 40 249 225 256 Core 15 | 10 . 2 3 Treads 126 | 30 45 . 51 Legs 122 | . . 56 66 Wheels . | . . . . Hover . | . . . . Flight 507 | . 204 167 136 Fastest Speed 37 | 50 37 37 37 Average Speed 75 | 132 59 59 97 Slowest Speed 200 | 160 160 150 200 Overloaded Moves . | . . . . Propulsion Burnouts . | . . . . Robots Hopped . | . . . . Cave-ins Triggered . | . . . . Exploration Rate (%) 33 | 5 40 66 24 Regions Visited 3 Branch Regions 1 Pre-discovered Areas . | . . . . Known Exits Taken . | . . . . Unknown Exits Taken 3 | 1 1 1 . Scrap Searched . | . . . . Spaces Dug . | . . . . Terrain Destroyed . | . . . . Melee . | . . . . Projectile . | . . . . AOE . | . . . . Terrain Rammed . | . . . . Walls Destroyed . | . . . . Machines Disabled . | . . . . Actions | -11 -10 -10 -9 --------- Run | Scr Mat Min Mat Total 1081 | 50 286 254 491 Wait 153 | . 5 2 146 Move 767 | 39 248 224 256 Hop . | . . . . Pick Up 21 | 6 6 5 4 Fast Attach 11 | . . 2 9 Attach 14 | 5 . 1 8 Detach 1 | . . . 1 Swap 9 | . 4 2 3 Drop 13 | . 3 3 7 Fire 92 | . 20 15 57 Melee . | . . . . Ram . | . . . . Kick . | . . . . Crush . | . . . . Escape Stasis . | . . . . Rewire . | . . . . Trap . | . . . . Miscellaneous . | . . . . Route ------- -11/Scrapyard -10/Materials (discovered 2 exits: [*Mat] / [*Min]) -10/Mines (discovered 2 exits: [*Mat x2]) -9/Materials History --------- Turn | Location | Event 5 | -11/Scrapyard | Discovered new exit (range 16) 64 | -11/Scrapyard | Entered Materials 227 | -10/Materials | Discovered new exit (range 13) 257 | -10/Materials | Discovered new exit (range 9) 285 | -10/Materials | Entered Mines 311 | -10/Mines | Build established: Mutant 342 | -10/Mines | Discovered new exit (range 9) 365 | -10/Mines | Core integrity fell below 50% 435 | -10/Mines | Discovered new exit (range 8) 472 | -10/Mines | Entered Materials 472 | -9/Materials | Evolved 2 slots: Power x1, Propulsion x1 727 | -9/Materials | Lost 4 parts (2n2w) 978 | -9/Materials | Core integrity fell below 50% 985 | -9/Materials | Build established: Scavenger-Mutant 1039 | -9/Materials | Core integrity fell below 20% 1054 | -9/Materials | Destroyed by G-34 Mercenary with Small Laser Last Messages --------------- Lgt. Treads severed. R-06 Scavenger collects Lgt. Ion Engine. L-31 Rogue suffers critical hit (Burn). Imp. Heat Sink destroyed. R-06 Scavenger collects Flight Unit. L-31 Rogue suffers critical hit (Burn). Lgt. Treads destroyed. Imp. Ion Engine destroyed. Hvy. Assault Rifle destroyed. Imp. Ion Engine destroyed. Destroyed Katana. G-34 Mercenary destroyed. L-31 Rogue heat short circuits Imp. Aluminum Leg. Beam Rifle destroyed. L-31 Rogue heat spikes uncontrollably. L-31 Rogue heat damages Core Shielding, Broken Imp. Aluminum Leg. K-01 Serf cleans the Material Compactor. Overheating: Energy bleed (-11). Mining Laser destroyed. K-01 Serf collects debris. Map ----- +----------------------------------------------------+ | ?????????????????????????????????????????????????? | | ?????????????????????????????????????????????????? | | ?????????????????????????????????????????????????? | | ?????????????????????????????????????????????????? | | ?????????????????????????????????????????????????? | | ?????????????????????????????????????????????????? | | ?????????????????????????????????????????????????? | | ?????????????????????????? ?????????????????????? | | ????????????##??????????## #?????????????????????? | | ???????????? ????????? ?????????????????????? | | ????????????? ??????? ??????????????????????? | | ????????????? ????? ??????????????????????? | | ????????????? ????? #??????????????????????? | | ???????? ???"" """ #??????????????????????? | | ????????? ??"""" """"" #??????????????????????? | | ?????? """"" """"" #??????????????????????? | | ?????? """"" """"" #??????????????????????? | | ?????? """ """ #??????????????????????? | | ????????# #??????????????????????? | | ????????# #???????????????????????? | | ????????# #???????????????????????? | | ????????# #???????????????????????? | | ????????# %#???????????????????????? | | ????????#######+#####w##+##??????????????????????? | | ????????# # g*= ####+####??????????????? | | ????????# """ # %k !@/ g k k ??????? | | ????#####! """"" # % #### ####??????????????? | | ??? ## """"" + [ #??????????????????????? | | ???"" !## """""%# #??????????????????????? | | ???"" ##" """ *# #??????????????????????? | | ? """ ##T !# g #??????????????????????? | | # ##" # #??????????????????????? | | # """ ## %# #??????????????????????? | | # """ ######/##########C##??????????????????????? | | # """ #????# #????????+ ??????????????????????? | | # #????# #????????#####?????????????????????? | | # """ #????# #??????????????????????????????????? | | # """ #?#### #??????????????????????????????????? | | # """ =#?# #??????????????????????????????????? | | # ]#?# #??????????????????????????????????? | | ####+##### ##+####???????????????????????????????? | | # #???????????????????????????????? | | # #???????????????????????????????? | | """ %+ #???????????????????????????????? | | """ # """ #???????????????????????????????? | | """ # """ #???????????????????????????????? | | """ # """ #???????????????????????????????? | | """ + #???????????????????????????????? | | ! # """ #???????????????????????????????? | | ### %== # """ #???????????????????????????????? | +----------------------------------------------------+ Best States ------------- Heat Dissipation 42 Energy Generation 27 Energy Capacity 430 Matter Stores 300 Matter Capacity 300 Sight Range 18 Terrain Scan Density 10 Evasion (%) 62 Recoil Reduction 2 Item Schematics ----------------- None Robot Schematics ------------------ None Fabricated ------------ Nothing Alien Tech Used ----------------- None Achievements -------------- None Challenges ------------ None Game ------ Seed TractorHardcellPod Manual? 0 Play Time 00:16:09 Cumulative 21.6 hours Start 2022.06.06 @ 15:09:56 End 2022.06.06 @ 15:26:14 Sessions 1 Manual Loads 0 Difficulty Rogue Special Mode None Game No. 42 Rogue 42 Adventurer 0 Explorer 0 Win Type - Total 0 Types 0/0/0/0/0/0/0/0/0 Lore% 19 Gallery% 23 Achievement% 18 Wizard Run 0 Options --------- ASCII 0 Keyboard 0 Movement Mouse Keybinds 0 Fullscreen 1 Font 18/SmallcapsGlow Map View 76x50 Tactical HUD 0 Map Filters NONE Filters NONE Steam 1 RUN: 569a68b4-0702-44aa-9202-c4e7304b5713